[Event "*** Titled Tuesday Blitz"]
[Site "Chess.com"]
[Date "2021.03.09"]
[Round "11"]
[White "Anna_ChessMate"]
[Black "KubaGepard"]
[Result "0-1"]
[WhiteElo "2567"]
[BlackElo "2433"]
[TimeControl "180+1"]
[EndTime "12:10:23 PST"]
[Termination "KubaGepard won by resignation"]

1. d4 {[%clk 0:03:00.9]} 1... d5 {[%clk 0:02:59.6]} 2. c4 {[%clk 0:03:00.8]}
2... dxc4 {[%clk 0:03:00.5]} 3. Nf3 {[%clk 0:03:00]} 3... Nf6 {[%clk 0:03:00.3]}
4. e3 {[%clk 0:03:00.5]} 4... e6 {[%clk 0:03:00.2]} 5. Bxc4 {[%clk 0:03:00.9]}
5... c5 {[%clk 0:03:01.1]} 6. O-O {[%clk 0:03:01.1]} 6... a6 {[%clk 0:03:01.9]}
7. b3 {[%clk 0:03:00.8]} 7... b5 {[%clk 0:02:57.6]} 8. Bd3 {[%clk 0:03:01]} 8...
Bb7 {[%clk 0:02:56.7]} 9. Bb2 {[%clk 0:03:00.4]} 9... Nbd7 {[%clk 0:02:56.1]}
10. a4 {[%clk 0:03:00.8]} 10... b4 {[%clk 0:02:53.4]} 11. Nbd2 {[%clk
0:03:00.7]} 11... Be7 {[%clk 0:02:51.1]} 12. Qe2 {[%clk 0:03:00.5]} 12... O-O
{[%clk 0:02:48.5]} 13. Nc4 {[%clk 0:03:00.2]} 13... a5 {[%clk 0:02:40.3]} 14.
Rfd1 {[%clk 0:02:57.9]} 14... Rc8 {[%clk 0:02:37.8]} 15. Rac1 {[%clk 0:02:56.6]}
15... h6 {[%clk 0:02:32.7]} 16. dxc5 {[%clk 0:02:50.1]} 16... Bxc5 {[%clk
0:02:31.2]} 17. e4 {[%clk 0:02:50.6]} 17... Ng4 {[%clk 0:02:28.4]} 18. Bd4
{[%clk 0:02:31.7]} 18... e5 {[%clk 0:01:55.3]} 19. Bxc5 {[%clk 0:02:27.6]} 19...
Rxc5 {[%clk 0:01:55.1]} 20. Bc2 {[%clk 0:02:28.2]} 20... Qe7 {[%clk 0:01:51.3]}
21. h3 {[%clk 0:02:25.6]} 21... Ngf6 {[%clk 0:01:50.5]} 22. Rd2 {[%clk 0:02:16]}
22... Rfc8 {[%clk 0:01:48.1]} 23. Rcd1 {[%clk 0:02:16.5]} 23... Nf8 {[%clk
0:01:42.4]} 24. Nd6 {[%clk 0:02:12.8]} 24... R8c7 {[%clk 0:01:37.3]} 25. Nf5
{[%clk 0:02:12.5]} 25... Qe6 {[%clk 0:01:34.4]} 26. Ne1 {[%clk 0:01:55.6]} 26...
Ba6 {[%clk 0:01:07.4]} 27. Bd3 {[%clk 0:01:50.3]} 27... Bxd3 {[%clk 0:01:02.6]}
28. Nxd3 {[%clk 0:01:39.3]} 28... Rc3 {[%clk 0:01:00.7]} 29. Ne1 {[%clk
0:00:59.7]} 29... N8d7 {[%clk 0:00:57.2]} 30. Rd6 {[%clk 0:00:52.3]} 30... Qxb3
{[%clk 0:00:56.1]} 31. Qb5 {[%clk 0:00:36.8]} 31... Rc1 {[%clk 0:00:44.2]} 32.
Ne3 {[%clk 0:00:35.8]} 32... Rxd1 {[%clk 0:00:38.3]} 33. Rxd1 {[%clk 0:00:36.7]}
33... Rc5 {[%clk 0:00:34.2]} 34. Qb7 {[%clk 0:00:29.7]} 34... Qxa4 {[%clk
0:00:32.9]} 35. Nd3 {[%clk 0:00:25.9]} 35... Rc3 {[%clk 0:00:30.6]} 36. Nb2
{[%clk 0:00:25.8]} 36... Qb3 {[%clk 0:00:29.1]} 37. Rd2 {[%clk 0:00:18.4]} 37...
g6 {[%clk 0:00:27]} 38. Qa8+ {[%clk 0:00:16.7]} 38... Kg7 {[%clk 0:00:26.4]} 39.
Nbd1 {[%clk 0:00:13.9]} 39... Rc1 {[%clk 0:00:25.8]} 40. Kh2 {[%clk 0:00:11.8]}
40... a4 {[%clk 0:00:25.4]} 41. Rd6 {[%clk 0:00:06.1]} 41... a3 {[%clk
0:00:24.4]} 42. Ra6 {[%clk 0:00:03.3]} 42... Rxd1 {[%clk 0:00:21.8]} 43. Nxd1
{[%clk 0:00:04.2]} 43... Qxd1 {[%clk 0:00:22.2]} 44. Qb7 {[%clk 0:00:05]} 44...
Qd2 {[%clk 0:00:21.6]} 45. f3 {[%clk 0:00:04.6]} 45... a2 {[%clk 0:00:20.3]} 46.
Qb5 {[%clk 0:00:03.9]} 46... Qb2 {[%clk 0:00:18.3]} 47. Qa4 {[%clk 0:00:03.4]}
47... b3 {[%clk 0:00:18.4]} 48. Ra7 {[%clk 0:00:03.1]} 48... Qb1 {[%clk
0:00:18.3]} 0-1

[Event "*** Titled Tuesday Blitz"]
[Site "Chess.com"]
[Date "2021.03.09"]
[Round "11"]
[White "Ekose"]
[Black "northridgehawk"]
[Result "1-0"]
[WhiteElo "2527"]
[BlackElo "2353"]
[TimeControl "180+1"]
[EndTime "12:10:26 PST"]
[Termination "Ekose won by resignation"]

1. d4 {[%clk 0:02:54.9]} 1... f5 {[%clk 0:02:31.9]} 2. g3 {[%clk 0:02:54.3]}
2... Nf6 {[%clk 0:02:25.8]} 3. Bg2 {[%clk 0:02:54.3]} 3... g6 {[%clk 0:02:23.5]}
4. c3 {[%clk 0:02:54.1]} 4... c6 {[%clk 0:02:22.8]} 5. Nh3 {[%clk 0:02:54.1]}
5... Bg7 {[%clk 0:02:22.9]} 6. Qb3 {[%clk 0:02:54]} 6... e6 {[%clk 0:02:20.1]}
7. Nd2 {[%clk 0:02:53]} 7... O-O {[%clk 0:02:19.5]} 8. Nf4 {[%clk 0:02:52.6]}
8... Qe7 {[%clk 0:02:14.4]} 9. Nd3 {[%clk 0:02:51.7]} 9... d6 {[%clk 0:02:14.2]}
10. O-O {[%clk 0:02:46.9]} 10... Na6 {[%clk 0:02:11.8]} 11. e4 {[%clk 0:02:44]}
11... d5 {[%clk 0:02:02.1]} 12. exf5 {[%clk 0:02:39.1]} 12... exf5 {[%clk
0:02:01]} 13. Re1 {[%clk 0:02:35.6]} 13... Qc7 {[%clk 0:01:45.4]} 14. Nf3 {[%clk
0:02:25]} 14... Ne4 {[%clk 0:01:45.1]} 15. Bf4 {[%clk 0:02:21.4]} 15... Qb6
{[%clk 0:01:34.6]} 16. Qc2 {[%clk 0:02:18]} 16... Re8 {[%clk 0:01:31.9]} 17. Be5
{[%clk 0:02:08.8]} 17... Be6 {[%clk 0:01:29.2]} 18. Bxg7 {[%clk 0:02:08.3]}
18... Kxg7 {[%clk 0:01:28.8]} 19. Nfe5 {[%clk 0:02:08.9]} 19... Nc7 {[%clk
0:01:26.8]} 20. f3 {[%clk 0:02:06.1]} 20... Nf6 {[%clk 0:01:25.6]} 21. Re2
{[%clk 0:02:02.3]} 21... Re7 {[%clk 0:01:24.7]} 22. Rae1 {[%clk 0:02:01.9]}
22... Rae8 {[%clk 0:01:25]} 23. Nc5 {[%clk 0:01:47.9]} 23... Bc8 {[%clk
0:00:58.8]} 24. Qd3 {[%clk 0:00:56.5]} 24... Qb5 {[%clk 0:00:57.2]} 25. Qd2
{[%clk 0:00:42.8]} 25... b6 {[%clk 0:00:56.5]} 26. Ncd3 {[%clk 0:00:41.6]} 26...
Qa6 {[%clk 0:00:54.2]} 27. Nxc6 {[%clk 0:00:34]} 27... Rxe2 {[%clk 0:00:53]} 28.
Rxe2 {[%clk 0:00:34.9]} 28... Rxe2 {[%clk 0:00:53]} 29. Qxe2 {[%clk 0:00:35.8]}
29... Ne6 {[%clk 0:00:40.3]} 30. Ncb4 {[%clk 0:00:26.2]} 30... Qb7 {[%clk
0:00:39.3]} 31. Ne5 {[%clk 0:00:25.3]} 31... a5 {[%clk 0:00:38]} 32. Nbd3 {[%clk
0:00:25.4]} 32... Qc7 {[%clk 0:00:36]} 33. h4 {[%clk 0:00:21.6]} 33... Ba6
{[%clk 0:00:36.3]} 34. Qe3 {[%clk 0:00:20.6]} 34... h6 {[%clk 0:00:33.5]} 35.
Kh2 {[%clk 0:00:18.1]} 35... Qe7 {[%clk 0:00:29.7]} 36. Nf4 {[%clk 0:00:16.4]}
36... Nxf4 {[%clk 0:00:23.4]} 37. Qxf4 {[%clk 0:00:17.3]} 37... Nh5 {[%clk
0:00:20.2]} 38. Qd2 {[%clk 0:00:08.9]} 38... g5 {[%clk 0:00:20.5]} 39. hxg5
{[%clk 0:00:08.6]} 39... hxg5 {[%clk 0:00:21.4]} 40. f4 {[%clk 0:00:07.1]} 40...
g4 {[%clk 0:00:17.5]} 41. Qf2 {[%clk 0:00:06.1]} 41... Qe6 {[%clk 0:00:17.7]}
42. Bf1 {[%clk 0:00:05.6]} 42... Qh6 {[%clk 0:00:18.6]} 43. Kg1 {[%clk
0:00:05.5]} 43... Nf6 {[%clk 0:00:19.2]} 44. Bxa6 {[%clk 0:00:05.2]} 44... Ne4
{[%clk 0:00:19.2]} 45. Qg2 {[%clk 0:00:05.8]} 45... Qd6 {[%clk 0:00:14.2]} 46.
Bd3 {[%clk 0:00:06.1]} 46... b5 {[%clk 0:00:14]} 47. Bxe4 {[%clk 0:00:06.5]}
47... dxe4 {[%clk 0:00:14.9]} 48. Qd2 {[%clk 0:00:06.4]} 48... b4 {[%clk
0:00:15.8]} 49. Kf2 {[%clk 0:00:06.6]} 49... bxc3 {[%clk 0:00:14.9]} 50. Qxc3
{[%clk 0:00:07.1]} 50... Qh6 {[%clk 0:00:14.8]} 51. Ke2 {[%clk 0:00:05.8]} 51...
Qh2+ {[%clk 0:00:14.6]} 52. Kd1 {[%clk 0:00:06.3]} 52... Qxg3 {[%clk 0:00:15.5]}
53. Qxg3 {[%clk 0:00:06]} 1-0

[Event "*** Titled Tuesday Blitz"]
[Site "Chess.com"]
[Date "2021.03.09"]
[Round "11"]
[White "imdvb6307"]
[Black "AldokhinIvan"]
[Result "1/2-1/2"]
[WhiteElo "2388"]
[BlackElo "2501"]
[TimeControl "180+1"]
[EndTime "12:10:26 PST"]
[Termination "Game drawn by repetition"]

1. c4 {[%clk 0:03:00.9]} 1... Nf6 {[%clk 0:02:59.6]} 2. Nc3 {[%clk 0:03:00.3]}
2... g6 {[%clk 0:02:59.8]} 3. Nf3 {[%clk 0:02:58.3]} 3... Bg7 {[%clk 0:03:00.7]}
4. d4 {[%clk 0:02:58.8]} 4... d6 {[%clk 0:03:01.1]} 5. e4 {[%clk 0:02:58.7]}
5... O-O {[%clk 0:03:01.4]} 6. Be2 {[%clk 0:02:59.3]} 6... Nc6 {[%clk
0:03:01.9]} 7. O-O {[%clk 0:02:58.9]} 7... Re8 {[%clk 0:03:01.8]} 8. d5 {[%clk
0:02:52.9]} 8... Nb4 {[%clk 0:03:01.8]} 9. Nd4 {[%clk 0:02:08]} 9... e5 {[%clk
0:02:58.9]} 10. Nb3 {[%clk 0:02:01.7]} 10... Nd7 {[%clk 0:02:52.3]} 11. Be3
{[%clk 0:02:00.1]} 11... f5 {[%clk 0:02:51.2]} 12. f3 {[%clk 0:01:59.3]} 12...
f4 {[%clk 0:02:42.3]} 13. Bf2 {[%clk 0:01:59.3]} 13... g5 {[%clk 0:02:34.9]} 14.
g4 {[%clk 0:01:58.5]} 14... fxg3 {[%clk 0:02:26.3]} 15. hxg3 {[%clk 0:01:58.1]}
15... Nf6 {[%clk 0:02:25.8]} 16. Kg2 {[%clk 0:01:55.4]} 16... h5 {[%clk
0:02:23.2]} 17. Be3 {[%clk 0:01:51]} 17... Qd7 {[%clk 0:02:01.9]} 18. Rh1 {[%clk
0:01:49.8]} 18... g4 {[%clk 0:01:59.6]} 19. Bg5 {[%clk 0:01:42]} 19... Nh7
{[%clk 0:01:53.4]} 20. Qd2 {[%clk 0:01:21.1]} 20... Qf7 {[%clk 0:01:45]} 21.
fxg4 {[%clk 0:01:18.7]} 21... Bxg4 {[%clk 0:01:40.1]} 22. Bxg4 {[%clk
0:01:17.8]} 22... hxg4 {[%clk 0:01:40.4]} 23. Raf1 {[%clk 0:01:17.5]} 23... Qg6
{[%clk 0:01:40.5]} 24. Bh6 {[%clk 0:01:03.4]} 24... Rf8 {[%clk 0:01:36.4]} 25.
Bxg7 {[%clk 0:00:58.6]} 25... Kxg7 {[%clk 0:01:36.1]} 26. a3 {[%clk 0:00:58.5]}
26... Na2 {[%clk 0:01:12.4]} 27. Nxa2 {[%clk 0:00:34.9]} 27... Qxe4+ {[%clk
0:01:11.2]} 28. Kh2 {[%clk 0:00:35.2]} 28... Rxf1 {[%clk 0:00:44.8]} 29. Rxf1
{[%clk 0:00:34.5]} 29... Rh8 {[%clk 0:00:45.7]} 30. Kg1 {[%clk 0:00:26.1]} 30...
Qxc4 {[%clk 0:00:43.6]} 31. Nc3 {[%clk 0:00:15.8]} 31... Qxb3 {[%clk 0:00:35.6]}
32. Qe2 {[%clk 0:00:15.8]} 32... Qb6+ {[%clk 0:00:32.3]} 33. Kg2 {[%clk
0:00:15.8]} 33... Ng5 {[%clk 0:00:17.3]} 34. Qxg4 {[%clk 0:00:14.4]} 34... Qxb2+
{[%clk 0:00:17.2]} 35. Ne2 {[%clk 0:00:14.4]} 35... Qd2 {[%clk 0:00:13.4]} 36.
Rf5 {[%clk 0:00:13.3]} 36... Qxd5+ {[%clk 0:00:07.2]} 37. Kf2 {[%clk 0:00:05.3]}
37... Rh2+ {[%clk 0:00:07]} 38. Ke3 {[%clk 0:00:05.1]} 38... Qc5+ {[%clk
0:00:05.4]} 39. Kd2 {[%clk 0:00:05.2]} 39... Qd5+ {[%clk 0:00:03.3]} 40. Ke3
{[%clk 0:00:05.4]} 40... Qc5+ {[%clk 0:00:02.3]} 41. Kd2 {[%clk 0:00:05.5]}
41... Rxe2+ {[%clk 0:00:02]} 42. Kxe2 {[%clk 0:00:05.4]} 42... Qb5+ {[%clk
0:00:01.3]} 43. Kd2 {[%clk 0:00:05.5]} 43... Qa5+ {[%clk 0:00:01.1]} 44. Ke2
{[%clk 0:00:05.6]} 44... Qb5+ {[%clk 0:00:01.5]} 45. Kd2 {[%clk 0:00:05.8]}
45... Qa5+ {[%clk 0:00:01.9]} 46. Ke2 {[%clk 0:00:05.9]} 46... Qb5+ {[%clk
0:00:02.4]} 1/2-1/2

[Event "*** Titled Tuesday Blitz"]
[Site "Chess.com"]
[Date "2021.03.09"]
[Round "11"]
[White "Smile2005"]
[Black "LubovMarkelova"]
[Result "0-1"]
[WhiteElo "2366"]
[BlackElo "2235"]
[TimeControl "180+1"]
[EndTime "12:10:26 PST"]
[Termination "LubovMarkelova won on time"]

1. Nf3 {[%clk 0:03:00.9]} 1... d5 {[%clk 0:02:59.8]} 2. g3 {[%clk 0:03:01.2]}
2... c6 {[%clk 0:03:00]} 3. Bg2 {[%clk 0:03:01.9]} 3... Nf6 {[%clk 0:03:00.9]}
4. O-O {[%clk 0:03:02.4]} 4... Bf5 {[%clk 0:03:01.2]} 5. d4 {[%clk 0:03:00.9]}
5... h6 {[%clk 0:03:01.7]} 6. c4 {[%clk 0:03:01.5]} 6... e6 {[%clk 0:03:02]} 7.
Nc3 {[%clk 0:03:02.2]} 7... Be7 {[%clk 0:03:01.6]} 8. Nd2 {[%clk 0:03:02.9]}
8... O-O {[%clk 0:03:01.5]} 9. e4 {[%clk 0:03:03.5]} 9... dxe4 {[%clk
0:03:01.8]} 10. Ndxe4 {[%clk 0:03:04.4]} 10... Nbd7 {[%clk 0:02:59]} 11. h3
{[%clk 0:03:03.6]} 11... Nxe4 {[%clk 0:02:56.8]} 12. Nxe4 {[%clk 0:03:04.5]}
12... Nf6 {[%clk 0:02:57.1]} 13. Nc3 {[%clk 0:03:04.5]} 13... Qb6 {[%clk
0:02:55.7]} 14. b3 {[%clk 0:03:00.4]} 14... Rfd8 {[%clk 0:02:54.3]} 15. Be3
{[%clk 0:03:00.6]} 15... a5 {[%clk 0:02:38.9]} 16. Qe2 {[%clk 0:02:57]} 16...
Bb4 {[%clk 0:02:31.4]} 17. Na4 {[%clk 0:02:50.3]} 17... Qa6 {[%clk 0:02:28.2]}
18. a3 {[%clk 0:02:26.3]} 18... Be7 {[%clk 0:02:23.7]} 19. Nc3 {[%clk
0:02:26.2]} 19... Rac8 {[%clk 0:02:17.3]} 20. Qb2 {[%clk 0:02:25]} 20... b5
{[%clk 0:02:16.1]} 21. Rfc1 {[%clk 0:01:42.5]} 21... bxc4 {[%clk 0:02:14.6]} 22.
bxc4 {[%clk 0:01:42.8]} 22... Rb8 {[%clk 0:02:08.7]} 23. Qa2 {[%clk 0:01:42.6]}
23... a4 {[%clk 0:02:00.5]} 24. g4 {[%clk 0:01:32.3]} 24... Bd3 {[%clk 0:02:00]}
25. Ne2 {[%clk 0:01:17.7]} 25... Rb3 {[%clk 0:01:55.7]} 26. Nf4 {[%clk
0:01:15.3]} 26... Bxc4 {[%clk 0:01:52.5]} 27. Qc2 {[%clk 0:01:09]} 27... Bd5
{[%clk 0:01:45.3]} 28. Nxd5 {[%clk 0:01:07.5]} 28... cxd5 {[%clk 0:01:45.3]} 29.
Qc7 {[%clk 0:01:01.9]} 29... Qd6 {[%clk 0:01:33.7]} 30. Qa7 {[%clk 0:00:57.4]}
30... Rxa3 {[%clk 0:01:24]} 31. Rab1 {[%clk 0:00:56.6]} 31... Rb3 {[%clk
0:01:12.4]} 32. Qxa4 {[%clk 0:00:52.3]} 32... Rxb1 {[%clk 0:01:12.6]} 33. Rxb1
{[%clk 0:00:53.2]} 33... Rb8 {[%clk 0:01:08.8]} 34. Rc1 {[%clk 0:00:44.2]} 34...
Qb4 {[%clk 0:01:04.1]} 35. Qa7 {[%clk 0:00:42]} 35... Bd6 {[%clk 0:01:03.3]} 36.
Bf3 {[%clk 0:00:26.5]} 36... Qb7 {[%clk 0:00:54]} 37. Qa4 {[%clk 0:00:23.4]}
37... Rc8 {[%clk 0:00:53]} 38. Ra1 {[%clk 0:00:19.1]} 38... Ne4 {[%clk
0:00:45.7]} 39. Kg2 {[%clk 0:00:17.4]} 39... Bb8 {[%clk 0:00:41.7]} 40. Qa2
{[%clk 0:00:09.3]} 40... Qc7 {[%clk 0:00:39.8]} 41. Qa6 {[%clk 0:00:06.8]} 41...
Qh2+ {[%clk 0:00:20.9]} 42. Kf1 {[%clk 0:00:07]} 42... Rc2 {[%clk 0:00:18.5]}
43. Qd3 {[%clk 0:00:02.9]} 43... Rb2 {[%clk 0:00:08.3]} 44. Re1 {[%clk
0:00:01.7]} 44... Ng5 {[%clk 0:00:07.6]} 45. Bg2 {[%clk 0:00:01.2]} 45... Nxh3
{[%clk 0:00:07.6]} 0-1

[Event "*** Titled Tuesday Blitz"]
[Site "Chess.com"]
[Date "2021.03.09"]
[Round "11"]
[White "lindsay790"]
[Black "thechesscorner64"]
[Result "1-0"]
[WhiteElo "2210"]
[BlackElo "2337"]
[TimeControl "180+1"]
[EndTime "12:10:28 PST"]
[Termination "lindsay790 won by checkmate"]

1. e4 {[%clk 0:03:00.9]} 1... c5 {[%clk 0:02:54.2]} 2. Nf3 {[%clk 0:03:00.4]}
2... e6 {[%clk 0:02:53.9]} 3. d4 {[%clk 0:03:00.1]} 3... cxd4 {[%clk 0:02:53.6]}
4. Nxd4 {[%clk 0:03:00.4]} 4... a6 {[%clk 0:02:53.8]} 5. Bd3 {[%clk 0:03:00.2]}
5... Nc6 {[%clk 0:02:52.7]} 6. Nb3 {[%clk 0:02:58.4]} 6... Nf6 {[%clk
0:02:50.9]} 7. Qe2 {[%clk 0:02:55]} 7... Qc7 {[%clk 0:02:45.6]} 8. c4 {[%clk
0:02:46.5]} 8... d6 {[%clk 0:02:42.7]} 9. O-O {[%clk 0:02:36.2]} 9... Be7 {[%clk
0:02:43.2]} 10. a3 {[%clk 0:02:33.4]} 10... O-O {[%clk 0:02:41.8]} 11. Be3
{[%clk 0:02:27.1]} 11... b6 {[%clk 0:02:38]} 12. f4 {[%clk 0:02:26.1]} 12... Nd7
{[%clk 0:02:37.4]} 13. Nc3 {[%clk 0:02:25.6]} 13... Bb7 {[%clk 0:02:35.6]} 14.
Rac1 {[%clk 0:02:25.2]} 14... Nc5 {[%clk 0:02:29]} 15. Nxc5 {[%clk 0:02:21]}
15... bxc5 {[%clk 0:02:25.9]} 16. Qh5 {[%clk 0:02:13.8]} 16... g6 {[%clk
0:02:21.8]} 17. Qh6 {[%clk 0:02:11.1]} 17... Bf6 {[%clk 0:02:21.2]} 18. f5
{[%clk 0:02:11.1]} 18... Bg7 {[%clk 0:02:21.4]} 19. Qh4 {[%clk 0:02:10.8]} 19...
exf5 {[%clk 0:02:17.2]} 20. Nd5 {[%clk 0:02:06.9]} 20... Qd8 {[%clk 0:02:16.4]}
21. Qxd8 {[%clk 0:01:30.5]} 21... Raxd8 {[%clk 0:02:13]} 22. exf5 {[%clk
0:01:30.8]} 22... Rfe8 {[%clk 0:02:05]} 23. f6 {[%clk 0:01:28.8]} 23... Bf8
{[%clk 0:02:04.3]} 24. Bg5 {[%clk 0:01:22.7]} 24... Nd4 {[%clk 0:01:57.4]} 25.
Rce1 {[%clk 0:01:19.1]} 25... Bxd5 {[%clk 0:01:55.4]} 26. cxd5 {[%clk
0:01:18.7]} 26... h6 {[%clk 0:01:46.1]} 27. Bh4 {[%clk 0:01:13.9]} 27... Re5
{[%clk 0:01:37.3]} 28. Bxg6 {[%clk 0:00:47]} 28... Rde8 {[%clk 0:01:14.5]} 29.
Bd3 {[%clk 0:00:39.7]} 29... Rxe1 {[%clk 0:00:36.8]} 30. Rxe1 {[%clk 0:00:39.4]}
30... Rxe1+ {[%clk 0:00:35.5]} 31. Bxe1 {[%clk 0:00:39.1]} 31... h5 {[%clk
0:00:35.8]} 32. Bxa6 {[%clk 0:00:38.4]} 32... Bh6 {[%clk 0:00:34.7]} 33. Bg3
{[%clk 0:00:36.3]} 33... Bc1 {[%clk 0:00:28]} 34. b4 {[%clk 0:00:34]} 34... cxb4
{[%clk 0:00:26.4]} 35. axb4 {[%clk 0:00:33.9]} 35... Be3+ {[%clk 0:00:19.1]} 36.
Kf1 {[%clk 0:00:32.7]} 36... Nf5 {[%clk 0:00:20]} 37. Bf2 {[%clk 0:00:23.8]}
37... Kf8 {[%clk 0:00:20.3]} 38. Bb5 {[%clk 0:00:19.4]} 38... h4 {[%clk
0:00:17.5]} 39. Bc6 {[%clk 0:00:19.2]} 39... Bxf2 {[%clk 0:00:15.9]} 40. Kxf2
{[%clk 0:00:19.1]} 40... Nd4 {[%clk 0:00:15.6]} 41. b5 {[%clk 0:00:19.5]} 41...
Nb3 {[%clk 0:00:14.4]} 42. b6 {[%clk 0:00:19.5]} 42... Nc5 {[%clk 0:00:14.2]}
43. b7 {[%clk 0:00:19.9]} 43... Nxb7 {[%clk 0:00:15]} 44. Bxb7 {[%clk
0:00:20.3]} 44... Kg8 {[%clk 0:00:15.9]} 45. Bc6 {[%clk 0:00:20.5]} 45... Kh7
{[%clk 0:00:16.8]} 46. Kf3 {[%clk 0:00:20.4]} 46... Kg6 {[%clk 0:00:17.7]} 47.
Kg4 {[%clk 0:00:21.3]} 47... Kxf6 {[%clk 0:00:18.1]} 48. Kxh4 {[%clk 0:00:21.9]}
48... Ke5 {[%clk 0:00:19]} 49. Kg4 {[%clk 0:00:22.4]} 49... f5+ {[%clk
0:00:19.9]} 50. Kf3 {[%clk 0:00:22.8]} 50... f4 {[%clk 0:00:20.2]} 51. h4 {[%clk
0:00:23.3]} 51... Kf6 {[%clk 0:00:20.6]} 52. Ke4 {[%clk 0:00:23.5]} 52... Kg6
{[%clk 0:00:21.5]} 53. Kxf4 {[%clk 0:00:23.9]} 53... Kh5 {[%clk 0:00:22.4]} 54.
g3 {[%clk 0:00:24.3]} 54... Kg6 {[%clk 0:00:22.5]} 55. g4 {[%clk 0:00:25]} 55...
Kh6 {[%clk 0:00:22.7]} 56. g5+ {[%clk 0:00:25]} 56... Kg6 {[%clk 0:00:23.6]} 57.
Kg4 {[%clk 0:00:24.9]} 57... Kf7 {[%clk 0:00:22.4]} 58. h5 {[%clk 0:00:25.4]}
58... Ke7 {[%clk 0:00:23.3]} 59. Kf5 {[%clk 0:00:25.8]} 59... Kf7 {[%clk
0:00:24.2]} 60. g6+ {[%clk 0:00:26.1]} 60... Kg7 {[%clk 0:00:25.1]} 61. Kg5
{[%clk 0:00:26.6]} 61... Kg8 {[%clk 0:00:26]} 62. h6 {[%clk 0:00:27.1]} 62...
Kh8 {[%clk 0:00:26.9]} 63. Kf6 {[%clk 0:00:27.4]} 63... Kg8 {[%clk 0:00:27.2]}
64. Ke6 {[%clk 0:00:27.8]} 64... Kh8 {[%clk 0:00:28.1]} 65. Kxd6 {[%clk
0:00:28.2]} 65... Kg8 {[%clk 0:00:29]} 66. Ke6 {[%clk 0:00:28.6]} 66... Kh8
{[%clk 0:00:29.9]} 67. d6 {[%clk 0:00:29.1]} 67... Kg8 {[%clk 0:00:30.8]} 68. d7
{[%clk 0:00:29.6]} 68... Kf8 {[%clk 0:00:31.7]} 69. d8=Q# {[%clk 0:00:29.9]} 1-0

[Event "*** Titled Tuesday Blitz"]
[Site "Chess.com"]
[Date "2021.03.09"]
[Round "11"]
[White "RobertoJBM"]
[Black "enriquetejedor"]
[Result "1-0"]
[WhiteElo "2716"]
[BlackElo "2548"]
[TimeControl "180+1"]
[EndTime "12:10:30 PST"]
[Termination "RobertoJBM won on time"]

1. e4 {[%clk 0:03:00.9]} 1... e5 {[%clk 0:02:58.6]} 2. Nf3 {[%clk 0:03:00.1]}
2... Nc6 {[%clk 0:02:58.8]} 3. d4 {[%clk 0:03:00.2]} 3... exd4 {[%clk
0:02:55.7]} 4. Nxd4 {[%clk 0:03:01.1]} 4... Bc5 {[%clk 0:02:46.7]} 5. Nb3 {[%clk
0:03:00.7]} 5... Bb6 {[%clk 0:02:45.4]} 6. Nc3 {[%clk 0:03:00]} 6... Nf6 {[%clk
0:02:44.1]} 7. Qe2 {[%clk 0:02:59.7]} 7... O-O {[%clk 0:02:43.2]} 8. Be3 {[%clk
0:02:58.8]} 8... Re8 {[%clk 0:02:42.2]} 9. f3 {[%clk 0:02:52.9]} 9... d6 {[%clk
0:02:35.8]} 10. O-O-O {[%clk 0:02:52.5]} 10... Be6 {[%clk 0:02:33.6]} 11. Kb1
{[%clk 0:02:51]} 11... Bxe3 {[%clk 0:02:16.8]} 12. Qxe3 {[%clk 0:02:50.8]} 12...
a6 {[%clk 0:02:17.7]} 13. Be2 {[%clk 0:02:47.8]} 13... b5 {[%clk 0:02:12.8]} 14.
Nc5 {[%clk 0:02:19.4]} 14... b4 {[%clk 0:01:38]} 15. Nxe6 {[%clk 0:02:15.7]}
15... fxe6 {[%clk 0:01:36.8]} 16. Na4 {[%clk 0:02:13.3]} 16... Qe7 {[%clk
0:01:17.8]} 17. Rhe1 {[%clk 0:02:06.9]} 17... Nd7 {[%clk 0:01:14.7]} 18. Bc4
{[%clk 0:01:54.4]} 18... Na5 {[%clk 0:01:06.6]} 19. Qe2 {[%clk 0:01:43.9]} 19...
Nxc4 {[%clk 0:00:59.2]} 20. Qxc4 {[%clk 0:01:43.2]} 20... Ne5 {[%clk 0:00:58.9]}
21. Qxb4 {[%clk 0:01:38.7]} 21... Reb8 {[%clk 0:00:58.9]} 22. Qc3 {[%clk
0:01:36.5]} 22... Rb5 {[%clk 0:00:49.6]} 23. b3 {[%clk 0:01:34.7]} 23... c5
{[%clk 0:00:43.9]} 24. Nb2 {[%clk 0:01:10.9]} 24... Nc6 {[%clk 0:00:39.8]} 25.
Nc4 {[%clk 0:01:02.6]} 25... Nd4 {[%clk 0:00:35.8]} 26. Rxd4 {[%clk 0:00:58.5]}
26... cxd4 {[%clk 0:00:35.4]} 27. Qxd4 {[%clk 0:00:59.4]} 27... Rd8 {[%clk
0:00:32.7]} 28. Ne3 {[%clk 0:00:53.6]} 28... Qf6 {[%clk 0:00:31.1]} 29. Qxf6
{[%clk 0:00:52]} 29... gxf6 {[%clk 0:00:32]} 30. c4 {[%clk 0:00:52.7]} 30... Rb7
{[%clk 0:00:30.7]} 31. Kc2 {[%clk 0:00:52.8]} 31... Kf7 {[%clk 0:00:30.7]} 32.
Kc3 {[%clk 0:00:53]} 32... Ke7 {[%clk 0:00:30.9]} 33. Re2 {[%clk 0:00:53.4]}
33... Rg8 {[%clk 0:00:30.2]} 34. f4 {[%clk 0:00:52.8]} 34... Rg6 {[%clk
0:00:29.1]} 35. f5 {[%clk 0:00:52.7]} 35... Rh6 {[%clk 0:00:28.8]} 36. g3 {[%clk
0:00:48.3]} 36... e5 {[%clk 0:00:25.7]} 37. Kd3 {[%clk 0:00:42.3]} 37... Rh3
{[%clk 0:00:23.2]} 38. Rg2 {[%clk 0:00:41.8]} 38... h5 {[%clk 0:00:21.1]} 39.
Ke2 {[%clk 0:00:41.8]} 39... h4 {[%clk 0:00:17.8]} 40. Kf3 {[%clk 0:00:30.4]}
40... hxg3 {[%clk 0:00:17.3]} 41. hxg3 {[%clk 0:00:31.3]} 41... a5 {[%clk
0:00:16.1]} 42. Rd2 {[%clk 0:00:23.8]} 42... a4 {[%clk 0:00:13.3]} 43. b4 {[%clk
0:00:24.1]} 43... Rh8 {[%clk 0:00:07.4]} 44. b5 {[%clk 0:00:23.7]} 44... Rc8
{[%clk 0:00:06.8]} 45. Rh2 {[%clk 0:00:23.8]} 45... Kd8 {[%clk 0:00:03]} 46.
Rh8+ {[%clk 0:00:19.8]} 46... Kc7 {[%clk 0:00:02.3]} 47. Nd5+ {[%clk 0:00:16.5]}
47... Kb8 {[%clk 0:00:02.2]} 48. Rxc8+ {[%clk 0:00:16.3]} 48... Kxc8 {[%clk
0:00:03.1]} 49. Nxf6 {[%clk 0:00:16.5]} 49... Rc7 {[%clk 0:00:03]} 50. Nd5
{[%clk 0:00:17.1]} 1-0